[Event "European Womens-ch 2025"]
[Site "Rhodes"]
[Date "2025.04.10"]
[Round "10.49"]
[White "Bhatia, Kanishka"]
[Black "Koridze, Lile"]
[Result "0-1"]
[Annotator "ChessBase"]
[ECO "D05"]
[WhiteElo "2012"]
[BlackElo "2115"]
[PlyCount "76"]
[EventDate "2025.03.29"]
[EventType "swiss"]
[EventCountry "GRE"]
[SourceTitle "playchess.com"]
[Source "ChessBase"]
[SourceQuality "1"]
[TimeControl "40/5400+30:1800+30"]

1. d4 {[%emt 0:00:05]} Nf6 {[%emt 0:00:03]} 2. Nf3 {[%emt 0:00:29]} e6 {[%emt 0:00:27]} 3. e3 {[%emt 0:00:20]} c5 {[%emt 0:01:58]} 4. Bd3 {[%emt 0:00:15]} b6 {[%emt 0:03:24]} 5. O-O {[%emt 0:00:30]} Bb7 {[%emt 0:00:59]} 6. Nbd2 {[%emt 0:00:55]} d5 {[%emt 0:08:01]} 7. b3 {[%emt 0:01:50]} Bd6 {[%emt 0:01:45]} 8. Bb2 {[%emt 0:00:23]} O-O {[%emt 0:01:23]} 9. Ne5 {[%emt 0:01:39]} Nc6 {[%emt 0:07:29]} 10. a3 {[%emt 0:02:16]} Rc8 {[%emt 0:02:56]} 11. f4 {[%emt 0:00:31]} Ne7 {[%emt 0:01:00]} 12. Qf3 {[%emt 0:17:43]} Qc7 {[%emt 0:07:24]} 13. Ng4 {[%emt 0:06:02]} Nxg4 {[%emt 0:10:30]} 14. Qxg4 {[%emt 0:00:17]} f5 {[%emt 0:00:12]} 15. Qg3 {[%emt 0:12:19]} cxd4 {[%emt 0:13:57]} 16. Bxd4 {[%emt 0:02:38]} Nc6 {[%emt 0:01:58]} 17. Bb2 {[%emt 0:03:16]} Rce8 {[%emt 0:08:18]} 18. Bb5 {[%emt 0:10:27]} e5 {[%emt 0:07:16]} 19. Bxc6 {[%emt 0:03:52]} Qxc6 {[%emt 0:06:58]} 20. fxe5 {[%emt 0:10:31]} Qxc2 {[%emt 0:01:01]} 21. Bd4 {[%emt 0:01:07]} Bc5 {[%emt 0:00:50]} 22. Nf3 {[%emt 0:05:07]} Bxd4 {[%emt 0:05:43]} 23. Nxd4 {[%emt 0:00:37]} Qe4 {[%emt 0:00:20]} 24. e6 {[%emt 0:00:26]} Bc8 {[%emt 0:00:46]} 25. Rae1 {[%emt 0:10:36]} Bxe6 {[%emt 0:00:53]} 26. Qd6 {[%emt 0:01:07]} Rf6 {[%emt 0:02:27]} 27. Rf4 {[%emt 0:01:26]} Qd3 {[%emt 0:00:27]} 28. Qc6 {[%emt 0:01:49]} Bf7 {[%emt 0:00:19]} 29. Qd7 {[%emt 0:01:06]} Qc3 {[%emt 0:03:50]} 30. Re2 {[%emt 0:00:34]} Rxe3 {[%emt 0:01:48]} 31. Qd8+ {[%emt 0:00:13]} Be8 {[%emt 0:00:04]} 32. Qxd5+ {[%emt 0:00:19]} Kh8 {[%emt 0:00:02]} 33. Ref2 {[%emt 0:03:27]} Re1+ {[%emt 0:00:21]} 34. Rf1 {[%emt 0:00:05]} Qe3+ {[%emt 0:01:13]} 35. Kh1 {[%emt 0:00:06]} g5 {[%emt 0:01:17]} 36. R4f3 {[%emt 0:03:17]} g4 {[%emt 0:00:09]} 37. Qd8 {[%emt 0:00:45]} gxf3 {[%emt 0:00:36]} 38. Qxf6+ {[%emt 0:00:04]} Kg8 {[%emt 0:00:02]} 0-1

[Event "European Womens-ch 2025"]
[Site "Rhodes"]
[Date "2025.04.10"]
[Round "10.50"]
[White "Deak-Sala, Emilia"]
[Black "Krkyasharyan, Sona"]
[Result "1/2-1/2"]
[Annotator "ChessBase"]
[ECO "A07"]
[WhiteElo "2112"]
[BlackElo "1989"]
[PlyCount "71"]
[EventDate "2025.03.29"]
[EventType "swiss"]
[EventCountry "GRE"]
[SourceTitle "playchess.com"]
[Source "ChessBase"]
[SourceQuality "1"]
[TimeControl "40/5400+30:1800+30"]

1. Nf3 {[%emt 0:04:56]} d5 {[%emt 0:00:07]} 2. g3 {[%emt 0:00:06]} Nf6 {[%emt 0:00:05]} 3. Bg2 {[%emt 0:00:03]} g6 {[%emt 0:00:08]} 4. O-O {[%emt 0:00:09]} Bg7 {[%emt 0:00:03]} 5. c4 {[%emt 0:00:04]} dxc4 {[%emt 0:00:16]} 6. Na3 {[%emt 0:00:05]} O-O {[%emt 0:03:32]} 7. Nxc4 {[%emt 0:01:02]} c6 {[%emt 0:01:41]} 8. d3 {[%emt 0:00:13]} Nbd7 {[%emt 0:01:00]} 9. Rb1 {[%emt 0:00:06]} Nb6 {[%emt 0:00:53]} 10. Nxb6 {[%emt 0:03:03]} axb6 {[%emt 0:01:40]} 11. a3 {[%emt 0:00:20]} b5 {[%emt 0:14:00]} 12. Qc2 {[%emt 0:02:34]} Re8 {[%emt 0:03:02]} 13. b4 {[%emt 0:03:27]} e5 {[%emt 0:04:39]} 14. e4 {[%emt 0:01:26]} Bg4 {[%emt 0:03:17]} 15. Bb2 {[%emt 0:01:07]} Nd7 {[%emt 0:00:40]} 16. Nd2 {[%emt 0:06:02]} Nf8 {[%emt 0:03:59]} 17. Nb3 {[%emt 0:02:16]} Qc8 {[%emt 0:11:00]} 18. f4 {[%emt 0:10:52]} Bh3 {[%emt 0:04:45]} 19. Bxh3 {[%emt 0:00:41]} Qxh3 {[%emt 0:00:07]} 20. f5 {[%emt 0:00:42]} Nd7 {[%emt 0:03:47]} 21. Nd2 {[%emt 0:06:54]} Re7 {[%emt 0:07:08]} 22. Rf2 {[%emt 0:02:24]} Nf6 {[%emt 0:01:27]} 23. Nf1 {[%emt 0:03:18]} Ng4 {[%emt 0:01:28]} 24. Rf3 {[%emt 0:00:19]} Kh8 {[%emt 0:02:37]} 25. Rd1 {[%emt 0:00:39]} Rd8 {[%emt 0:00:35]} 26. Qe2 {[%emt 0:01:55]} Red7 {[%emt 0:01:32]} 27. Ne3 {[%emt 0:00:52]} Nxe3 {[%emt 0:01:01]} 28. Qxe3 {[%emt 0:00:05]} Qh5 {[%emt 0:01:16]} 29. fxg6 {[%emt 0:07:22]} fxg6 {[%emt 0:01:27]} 30. Kg2 {[%emt 0:02:13]} Qg4 {[%emt 0:00:35]} 31. Qc5 {[%emt 0:09:19]} Qe6 {[%emt 0:01:06]} 32. Rdf1 {[%emt 0:01:24]} Kg8 {[%emt 0:01:06]} 33. Qc2 {[%emt 0:02:10]} Re8 {[%emt 0:02:21]} 34. h4 {[%emt 0:00:44]} h5 {[%emt 0:00:56]} 35. R1f2 {[%emt 0:00:58]} Ree7 {[%emt 0:01:36]} 36. Qc5 {[%emt 0:09:13]} 1/2-1/2

[Event "European Womens-ch 2025"]
[Site "Rhodes"]
[Date "2025.04.10"]
[Round "10.51"]
[White "Bochnickova, Simona"]
[Black "Alexandri, Vasiliki"]
[Result "1-0"]
[Annotator "ChessBase"]
[ECO "B94"]
[WhiteElo "2167"]
[BlackElo "1927"]
[PlyCount "41"]
[EventDate "2025.03.29"]
[EventType "swiss"]
[EventCountry "GRE"]
[SourceTitle "playchess.com"]
[Source "ChessBase"]
[SourceQuality "1"]
[TimeControl "40/5400+30:1800+30"]

1. e4 {[%emt 1:31:00]} c5 {[%emt 1:31:00]} 2. Nf3 {[%emt 0:00:30]} d6 {[%emt 0:00:30]} 3. d4 {[%emt 0:00:30]} cxd4 {[%emt 0:00:30]} 4. Nxd4 {[%emt 0:00:30]} Nf6 {[%emt 0:00:30]} 5. Nc3 {[%emt 0:00:30]} a6 {[%emt 0:00:30]} 6. Bg5 {[%emt 0:00:30]} Nbd7 {[%emt 0:00:30]} 7. Bc4 {[%emt 0:00:30]} Qb6 {[%emt 0:00:30]} 8. Bb3 {[%emt 0:00:30]} e6 {[%emt 0:00:30]} 9. Qd2 {[%emt 0:00:30]} Be7 {[%emt 0:00:30]} 10. O-O-O {[%emt 0:00:30]} Qc7 {[%emt 0:00:30]} 11. Bxe6 {[%emt 0:00:30]} O-O {[%emt 0:00:30]} 12. Nf5 {[%emt 0:00:30]} Nc5 {[%emt 0:00:30]} 13. Bxc8 {[%emt 0:00:30]} Raxc8 {[%emt 0:00:30]} 14. Nxe7+ {[%emt 0:00:30]} Qxe7 {[%emt 0:00:30]} 15. Nd5 {[%emt 0:00:30]} Qe6 {[%emt 0:00:30]} 16. Bxf6 {[%emt 0:00:30]} Nxe4 {[%emt 0:00:30]} 17. Ne7+ {[%emt 0:00:30]} Kh8 {[%emt 0:00:30]} 18. Bxg7+ {[%emt 0:00:30]} Kxg7 {[%emt 0:00:30]} 19. Qd4+ {[%emt 0:00:30]} Qe5 {[%emt 0:00:30]} 20. Nxc8 {[%emt 0:00:30]} Rxc8 {[%emt 0:00:30]} 21. Rhe1 {[%emt 0:00:30]} 1-0

[Event "European Womens-ch 2025"]
[Site "Rhodes"]
[Date "2025.04.10"]
[Round "10.52"]
[White "Heinatz, Gundula"]
[Black "Golsta, Madara"]
[Result "1/2-1/2"]
[Annotator "ChessBase"]
[ECO "A48"]
[WhiteElo "2111"]
[BlackElo "1979"]
[PlyCount "89"]
[EventDate "2025.03.29"]
[EventType "swiss"]
[EventCountry "GRE"]
[SourceTitle "playchess.com"]
[Source "ChessBase"]
[SourceQuality "1"]
[TimeControl "40/5400+30:1800+30"]

1. d4 {[%emt 0:00:03]} Nf6 {[%emt 0:00:40]} 2. Nf3 {[%emt 0:00:15]} g6 {[%emt 0:00:17]} 3. c3 {[%emt 0:00:32]} Bg7 {[%emt 0:00:18]} 4. Bg5 {[%emt 0:00:22]} O-O {[%emt 0:00:35]} 5. Nbd2 {[%emt 0:00:36]} d6 {[%emt 0:00:32]} 6. e4 {[%emt 0:00:46]} c5 {[%emt 0:00:37]} 7. dxc5 {[%emt 0:04:52]} dxc5 {[%emt 0:04:32]} 8. Bc4 {[%emt 0:03:25]} h6 {[%emt 0:01:29]} 9. Be3 {[%emt 0:05:45]} Qc7 {[%emt 0:01:22]} 10. h3 {[%emt 0:01:35]} Nc6 {[%emt 0:05:54]} 11. O-O {[%emt 0:06:18]} b6 {[%emt 0:08:28]} 12. Re1 {[%emt 0:02:28]} Bb7 {[%emt 0:03:41]} 13. Qc2 {[%emt 0:05:35]} e6 {[%emt 0:07:25]} 14. Bf1 {[%emt 0:06:19]} g5 {[%emt 0:08:03]} 15. a4 {[%emt 0:04:22]} Nh5 {[%emt 0:13:44]} 16. Rad1 {[%emt 0:04:18]} Rad8 {[%emt 0:14:27]} 17. b4 {[%emt 0:01:39]} cxb4 {[%emt 0:04:56]} 18. cxb4 {[%emt 0:00:07]} Qb8 {[%emt 0:02:18]} 19. b5 {[%emt 0:03:31]} Ne5 {[%emt 0:00:16]} 20. Bd4 {[%emt 0:05:05]} Nxf3+ {[%emt 0:03:32]} 21. Nxf3 {[%emt 0:00:44]} f5 {[%emt 0:00:36]} 22. Bxg7 {[%emt 0:02:25]} Nxg7 {[%emt 0:00:33]} 23. Nd4 {[%emt 0:02:38]} fxe4 {[%emt 0:04:39]} 24. Bc4 {[%emt 0:03:42]} Qc8 {[%emt 0:06:32]} 25. Qa2 {[%emt 0:04:56]} Qc5 {[%emt 0:04:11]} 26. Nxe6 {[%emt 0:04:19]} Nxe6 {[%emt 0:00:07]} 27. Bxe6+ {[%emt 0:00:08]} Kg7 {[%emt 0:00:11]} 28. Rc1 {[%emt 0:04:31]} Qe5 {[%emt 0:00:24]} 29. Bg4 {[%emt 0:04:31]} Rf7 {[%emt 0:01:50]} 30. Re3 {[%emt 0:03:02]} Rd3 {[%emt 0:02:11]} 31. Rce1 {[%emt 0:06:10]} Qd4 {[%emt 0:00:29]} 32. Qa1 {[%emt 0:00:26]} Qxa1 {[%emt 0:00:55]} 33. Rxa1 {[%emt 0:00:01]} Rd2 {[%emt 0:00:28]} 34. Re2 {[%emt 0:01:10]} Rd4 {[%emt 0:00:22]} 35. Rc2 {[%emt 0:02:13]} Bd5 {[%emt 0:00:31]} 36. Rd1 {[%emt 0:07:15]} Bb3 {[%emt 0:00:38]} 37. Rxd4 {[%emt 0:00:12]} Bxc2 {[%emt 0:00:04]} 38. Rc4 {[%emt 0:01:24]} Bd3 {[%emt 0:00:09]} 39. Rc3 {[%emt 0:00:16]} Kf8 {[%emt 0:01:30]} 40. Rc8+ {[%emt 0:00:00]} Kg7 {[%emt 0:00:00]} 41. Rc6 {[%emt 0:05:33]} Rf6 {[%emt 0:07:53]} 42. Bh5 {[%emt 0:04:20]} a6 {[%emt 0:00:33]} 43. Rc7+ {[%emt 0:07:28]} Kf8 {[%emt 0:00:15]} 44. bxa6 {[%emt 0:02:11]} Bxa6 {[%emt 0:00:08]} 45. g3 {[%emt 0:03:34]} 1/2-1/2

[Event "European Womens-ch 2025"]
[Site "Rhodes"]
[Date "2025.04.10"]
[Round "10.53"]
[White "Paasikangas, Johanna"]
[Black "Valkova, Angelika"]
[Result "1-0"]
[Annotator "ChessBase"]
[ECO "C70"]
[WhiteElo "2106"]
[BlackElo "2001"]
[PlyCount "129"]
[EventDate "2025.03.29"]
[EventType "swiss"]
[EventCountry "GRE"]
[SourceTitle "playchess.com"]
[Source "ChessBase"]
[SourceQuality "1"]
[TimeControl "40/5400+30:1800+30"]

1. e4 {[%emt 1:31:00]} e5 {[%emt 1:31:00]} 2. Nf3 {[%emt 0:00:30]} Nc6 {[%emt 0:00:30]} 3. Bb5 {[%emt 0:00:30]} a6 {[%emt 0:00:30]} 4. Ba4 {[%emt 0:00:30]} Nge7 {[%emt 0:00:30]} 5. c3 {[%emt 0:00:30]} Ng6 {[%emt 0:00:30]} 6. d4 {[%emt 0:00:30]} exd4 {[%emt 0:00:30]} 7. cxd4 {[%emt 0:00:30]} Bb4+ {[%emt 0:00:30]} 8. Nc3 {[%emt 0:00:30]} d5 {[%emt 0:00:30]} 9. O-O {[%emt 0:00:30]} Bxc3 {[%emt 0:00:30]} 10. bxc3 {[%emt 0:00:30]} O-O {[%emt 0:00:30]} 11. exd5 {[%emt 0:00:30]} Qxd5 {[%emt 0:00:30]} 12. h3 {[%emt 0:00:30]} Na5 {[%emt 0:00:30]} 13. Ba3 {[%emt 0:00:30]} Rd8 {[%emt 0:00:30]} 14. Re1 {[%emt 0:00:30]} b5 {[%emt 0:00:30]} 15. Bc2 {[%emt 0:00:30]} Bf5 {[%emt 0:00:30]} 16. Ne5 {[%emt 0:00:30]} Nf4 {[%emt 0:00:30]} 17. f3 {[%emt 0:00:30]} Bxc2 {[%emt 0:00:30]} 18. Qxc2 {[%emt 0:00:30]} f6 {[%emt 0:00:30]} 19. Ng4 {[%emt 0:00:30]} h5 {[%emt 0:00:30]} 20. Nf2 {[%emt 0:00:30]} Qg5 {[%emt 0:00:30]} 21. Ne4 {[%emt 0:00:30]} Qg6 {[%emt 0:00:30]} 22. h4 {[%emt 0:00:30]} Nc4 {[%emt 0:00:30]} 23. Bc5 {[%emt 0:00:30]} Kh8 {[%emt 0:00:30]} 24. a4 {[%emt 0:00:30]} Rg8 {[%emt 0:00:30]} 25. Kh2 {[%emt 0:00:30]} Qf5 {[%emt 0:00:30]} 26. Ra2 {[%emt 0:00:30]} Rae8 {[%emt 0:00:30]} 27. axb5 {[%emt 0:00:30]} axb5 {[%emt 0:00:30]} 28. Qb1 {[%emt 0:00:30]} c6 {[%emt 0:00:30]} 29. Ng3 {[%emt 0:00:30]} Qxb1 {[%emt 0:00:30]} 30. Rxb1 {[%emt 0:00:30]} Nd5 {[%emt 0:00:30]} 31. Rc1 {[%emt 0:00:30]} Re3 {[%emt 0:00:30]} 32. Rac2 {[%emt 0:00:30]} g6 {[%emt 0:00:30]} 33. Ne4 {[%emt 0:00:30]} Rd8 {[%emt 0:00:30]} 34. Kg3 {[%emt 0:00:30]} f5 {[%emt 0:00:30]} 35. Ng5 {[%emt 0:00:30]} Kg7 {[%emt 0:00:30]} 36. Ra1 {[%emt 0:00:30]} Rd7 {[%emt 0:00:30]} 37. Ra6 {[%emt 0:00:30]} Rc7 {[%emt 0:00:30]} 38. Ra8 {[%emt 0:00:30]} Kf6 {[%emt 0:00:30]} 39. Rf8+ {[%emt 0:00:30]} Kg7 {[%emt 0:00:30]} 40. Kf2 {[%emt 0:00:30]} Nf4 {[%emt 0:00:30]} 41. Rd8 {[%emt 0:30:30]} Nd3+ {[%emt 0:30:30]} 42. Kg3 {[%emt 0:00:30]} f4+ {[%emt 0:00:30]} 43. Kh2 {[%emt 0:00:30]} Nxc5 {[%emt 0:00:30]} 44. dxc5 {[%emt 0:00:30]} Re5 {[%emt 0:00:30]} 45. Ra2 {[%emt 0:00:30]} Rce7 {[%emt 0:00:30]} 46. Raa8 {[%emt 0:00:30]} Re2 {[%emt 0:00:30]} 47. Rg8+ {[%emt 0:00:30]} Kf6 {[%emt 0:00:30]} 48. Raf8+ {[%emt 0:00:30]} Ke5 {[%emt 0:00:30]} 49. Rxg6 {[%emt 0:00:30]} Nd2 {[%emt 0:00:30]} 50. Rd6 {[%emt 0:00:30]} Nf1+ {[%emt 0:00:30]} 51. Kh3 {[%emt 0:00:30]} Re1 {[%emt 0:00:30]} 52. Nf7+ {[%emt 0:00:30]} Rxf7 {[%emt 0:00:30]} 53. Re8+ {[%emt 0:00:30]} Kf5 {[%emt 0:00:30]} 54. Rxe1 {[%emt 0:00:30]} Ne3 {[%emt 0:00:30]} 55. g3 {[%emt 0:00:30]} Rg7 {[%emt 0:00:30]} 56. Rg1 {[%emt 0:00:30]} Nd5 {[%emt 0:00:30]} 57. Rxc6 {[%emt 0:00:30]} Nxc3 {[%emt 0:00:30]} 58. Rh6 {[%emt 0:00:30]} b4 {[%emt 0:00:30]} 59. Rxh5+ {[%emt 0:00:30]} Ke6 {[%emt 0:00:30]} 60. Re1+ {[%emt 0:00:30]} Kd7 {[%emt 0:00:30]} 61. gxf4 {[%emt 0:00:30]} b3 {[%emt 0:00:30]} 62. Rh6 {[%emt 0:00:30]} b2 {[%emt 0:00:30]} 63. Rb6 {[%emt 0:00:30]} b1=Q {[%emt 0:00:30]} 64. Rexb1 {[%emt 0:00:30]} Nxb1 {[%emt 0:00:30]} 65. Rb7+ {[%emt 0:00:30]} 1-0

[Event "European Womens-ch 2025"]
[Site "Rhodes"]
[Date "2025.04.10"]
[Round "10.54"]
[White "Zagorac, Lara"]
[Black "Silva, Ana Ines Teixeira Da"]
[Result "1-0"]
[Annotator "ChessBase"]
[ECO "E01"]
[WhiteElo "2106"]
[BlackElo "1893"]
[PlyCount "95"]
[EventDate "2025.03.29"]
[EventType "swiss"]
[EventCountry "GRE"]
[SourceTitle "playchess.com"]
[Source "ChessBase"]
[SourceQuality "1"]
[TimeControl "40/5400+30:1800+30"]

1. Nf3 {[%emt 0:00:01]} d5 {[%emt 0:00:05]} 2. d4 {[%emt 0:00:09]} Nf6 {[%emt 0:00:04]} 3. c4 {[%emt 0:00:14]} e6 {[%emt 0:00:08]} 4. g3 {[%emt 0:00:06]} h6 {[%emt 0:00:09]} 5. Bg2 {[%emt 0:00:22]} Bd6 {[%emt 0:00:09]} 6. O-O {[%emt 0:00:10]} O-O {[%emt 0:00:05]} 7. Qc2 {[%emt 0:00:10]} b6 {[%emt 0:00:31]} 8. Rd1 {[%emt 0:00:23]} Bb7 {[%emt 0:01:56]} 9. Nc3 {[%emt 0:00:23]} Nbd7 {[%emt 0:10:05]} 10. cxd5 {[%emt 0:00:33]} exd5 {[%emt 0:00:29]} 11. Nb5 {[%emt 0:00:08]} Re8 {[%emt 0:11:36]} 12. Nxd6 {[%emt 0:01:04]} cxd6 {[%emt 0:00:05]} 13. Re1 {[%emt 0:02:18]} Rc8 {[%emt 0:16:36]} 14. Qa4 {[%emt 0:08:25]} a6 {[%emt 0:04:29]} 15. Bf4 {[%emt 0:13:34]} Ne4 {[%emt 0:08:12]} 16. Rac1 {[%emt 0:08:58]} b5 {[%emt 0:04:32]} 17. Qa3 {[%emt 0:07:50]} Nb6 {[%emt 0:03:34]} 18. b3 {[%emt 0:05:08]} g5 {[%emt 0:11:06]} 19. Be3 {[%emt 0:03:06]} Qf6 {[%emt 0:04:56]} 20. Qa5 {[%emt 0:07:18]} Nd7 {[%emt 0:08:23]} 21. Bh3 {[%emt 0:03:55]} Nf8 {[%emt 0:02:58]} 22. Bxc8 {[%emt 0:12:36]} Bxc8 {[%emt 0:00:14]} 23. Rxc8 {[%emt 0:00:29]} Rxc8 {[%emt 0:00:08]} 24. Qxa6 {[%emt 0:00:22]} Rc3 {[%emt 0:04:50]} 25. Rf1 {[%emt 0:13:52]} g4 {[%emt 0:00:59]} 26. Nd2 {[%emt 0:03:13]} Nxd2 {[%emt 0:04:02]} 27. Bxd2 {[%emt 0:00:07]} Rc2 {[%emt 0:00:05]} 28. Be3 {[%emt 0:00:47]} Rxe2 {[%emt 0:01:53]} 29. Qxb5 {[%emt 0:00:09]} Rxa2 {[%emt 0:00:34]} 30. Qxd5 {[%emt 0:00:15]} Kg7 {[%emt 0:01:44]} 31. Bf4 {[%emt 0:02:23]} Ne6 {[%emt 0:00:36]} 32. Bxd6 {[%emt 0:02:25]} Nxd4 {[%emt 0:00:19]} 33. Be5 {[%emt 0:03:11]} Nf3+ {[%emt 0:00:06]} 34. Qxf3 {[%emt 0:00:05]} gxf3 {[%emt 0:00:55]} 35. Bxf6+ {[%emt 0:00:01]} Kxf6 {[%emt 0:00:02]} 36. Rb1 {[%emt 0:00:14]} Kg5 {[%emt 0:01:04]} 37. h3 {[%emt 0:00:29]} f5 {[%emt 0:00:25]} 38. b4 {[%emt 0:00:39]} h5 {[%emt 0:00:25]} 39. b5 {[%emt 0:00:15]} f4 {[%emt 0:00:21]} 40. gxf4+ {[%emt 0:00:00]} Kxf4 {[%emt 0:00:00]} 41. Rb4+ {[%emt 0:06:21]} Kf5 {[%emt 0:01:47]} 42. b6 {[%emt 0:00:26]} Ra8 {[%emt 0:01:35]} 43. Kh2 {[%emt 0:00:35]} Rb8 {[%emt 0:04:01]} 44. Kg3 {[%emt 0:00:11]} Rb7 {[%emt 0:01:04]} 45. Kxf3 {[%emt 0:00:08]} Kf6 {[%emt 0:02:46]} 46. Kf4 {[%emt 0:00:08]} Kg6 {[%emt 0:01:03]} 47. Ke5 {[%emt 0:00:14]} h4 {[%emt 0:01:25]} 48. Kd6 {[%emt 0:00:04]} 1-0

[Event "European Womens-ch 2025"]
[Site "Rhodes"]
[Date "2025.04.10"]
[Round "10.55"]
[White "Tsetskhladze, Mariam"]
[Black "Chasouraki, Chrysi"]
[Result "1-0"]
[Annotator "ChessBase"]
[ECO "B45"]
[WhiteElo "2105"]
[BlackElo "1843"]
[PlyCount "113"]
[EventDate "2025.03.29"]
[EventType "swiss"]
[EventCountry "GRE"]
[SourceTitle "playchess.com"]
[Source "ChessBase"]
[SourceQuality "1"]
[TimeControl "40/5400+30:1800+30"]

1. e4 {[%emt 1:31:00]} c5 {[%emt 1:31:00]} 2. Nf3 {[%emt 0:00:30]} e6 {[%emt 0:00:30]} 3. d4 {[%emt 0:00:30]} cxd4 {[%emt 0:00:30]} 4. Nxd4 {[%emt 0:00:30]} Nf6 {[%emt 0:00:30]} 5. Nc3 {[%emt 0:00:30]} Nc6 {[%emt 0:00:30]} 6. a3 {[%emt 0:00:30]} d5 {[%emt 0:00:30]} 7. Bb5 {[%emt 0:00:30]} Bd7 {[%emt 0:00:30]} 8. exd5 {[%emt 0:00:30]} exd5 {[%emt 0:00:30]} 9. O-O {[%emt 0:00:30]} Be7 {[%emt 0:00:30]} 10. Be2 {[%emt 0:00:30]} O-O {[%emt 0:00:30]} 11. Bf4 {[%emt 0:00:30]} Rc8 {[%emt 0:00:30]} 12. Bf3 {[%emt 0:00:30]} Nxd4 {[%emt 0:00:30]} 13. Qxd4 {[%emt 0:00:30]} Bc5 {[%emt 0:00:30]} 14. Qd3 {[%emt 0:00:30]} d4 {[%emt 0:00:30]} 15. Ne2 {[%emt 0:00:30]} Bc6 {[%emt 0:00:30]} 16. Bxc6 {[%emt 0:00:30]} Rxc6 {[%emt 0:00:30]} 17. Rad1 {[%emt 0:00:30]} Re8 {[%emt 0:00:30]} 18. c3 {[%emt 0:00:30]} Rce6 {[%emt 0:00:30]} 19. Nxd4 {[%emt 0:00:30]} Bxd4 {[%emt 0:00:30]} 20. cxd4 {[%emt 0:00:30]} Nd5 {[%emt 0:00:30]} 21. Be5 {[%emt 0:00:30]} f6 {[%emt 0:00:30]} 22. Bg3 {[%emt 0:00:30]} Qb6 {[%emt 0:00:30]} 23. b4 {[%emt 0:00:30]} Re4 {[%emt 0:00:30]} 24. Be5 {[%emt 0:00:30]} fxe5 {[%emt 0:00:30]} 25. Qxe4 {[%emt 0:00:30]} Nc3 {[%emt 0:00:30]} 26. Qe3 {[%emt 0:00:30]} Nxd1 {[%emt 0:00:30]} 27. Rxd1 {[%emt 0:00:30]} Qd6 {[%emt 0:00:30]} 28. d5 {[%emt 0:00:30]} b6 {[%emt 0:00:30]} 29. h3 Rd8 {[%emt 0:00:30]} 30. Qc3 h6 {[%emt 0:00:30]} 31. Qc4 Kh8 {[%emt 0:00:30]} 32. a4 Rd7 {[%emt 0:00:30]} 33. b5 Rc7 {[%emt 0:00:30]} 34. Qe4 Rc5 {[%emt 0:00:30]} 35. Kh1 Kg8 {[%emt 0:00:30]} 36. Kh2 Rc8 {[%emt 0:00:30]} 37. Kg1 Rc5 {[%emt 0:00:30]} 38. g3 Rc8 {[%emt 0:00:30]} 39. Re1 Rc5 {[%emt 0:00:30]} 40. Qxe5 Rxd5 {[%emt 0:00:30]} 41. Qxd6 Rxd6 {[%emt 0:30:30]} 42. Re7 Rd4 {[%emt 0:00:30]} 43. Rxa7 Rb4 {[%emt 0:00:30]} 44. Kg2 Rb3 {[%emt 0:00:30]} 45. g4 Kh7 {[%emt 0:00:30]} 46. h4 Rb4 {[%emt 0:00:30]} 47. Kg3 Kh8 {[%emt 0:00:30]} 48. h5 {[%emt 0:40:00]} Kh7 {[%emt 0:00:30]} 49. f4 {[%emt 0:00:30]} Rb3+ {[%emt 0:00:30]} 50. Kf2 {[%emt 0:00:30]} Rb4 {[%emt 0:00:30]} 51. Ke3 {[%emt 0:00:30]} Rc4 {[%emt 0:00:30]} 52. g5 {[%emt 0:00:30]} hxg5 {[%emt 0:00:30]} 53. fxg5 {[%emt 0:00:30]} Rc3+ {[%emt 0:00:30]} 54. Kd4 {[%emt 0:00:30]} Rg3 {[%emt 0:00:30]} 55. h6 {[%emt 0:00:30]} Kh8 {[%emt 0:00:30]} 56. hxg7+ {[%emt 0:00:30]} Kg8 {[%emt 0:00:30]} 57. Kd5 1-0